bitfinex/quotes_BTCUSD_20250331
["timestamp","ask_amount","ask_price","bid_price","bid_amount"]
[1743398232393,0.57401575,82354.0,82353.0,0.002]
[1743398232708,0.57401575,82354.0,82339.0,0.02426332]
[1743398232709,0.255039,82340.0,82339.0,0.02426332]
[1743398233386,0.255039,82340.0,82338.0,0.0781]
[1743398233387,0.012144,82339.0,82338.0,0.0781]
[1743398236090,0.012144,82339.0,82338.0,0.0801]
[1743398236694,0.012144,82339.0,82338.0,0.0821]
[1743398237841,0.32692265,82339.0,82338.0,0.004]
[1743398238120,0.312144,82339.0,82338.0,0.004]
[1743398239092,0.312144,82339.0,82338.0,0.002]
[1743398239307,0.012145,82333.0,82332.0,0.0484]
[1743398239538,0.25506,82333.0,82332.0,0.0484]
[1743398240665,0.25506,82333.0,82332.0,0.0544]
[1743398241790,0.27408411,82333.0,82332.0,0.0544]
[1743398241978,0.27408411,82333.0,82332.0,0.006]
[1743398242593,0.242907,82336.0,82332.0,0.006]
[1743398242794,0.242901,82338.0,82332.0,0.006]
[1743398243004,0.012143,82347.0,82337.0,0.0492]
[1743398243304,0.242899,82339.0,82338.0,0.0798]
[1743398243511,0.242894,82341.0,82338.0,0.0798]
[1743398243842,0.242886,82343.0,82338.0,0.0798]
[1743398244046,0.242896,82340.0,82338.0,0.0798]
[1743398244858,0.01902224,82341.0,82338.0,0.0798]
[1743398245264,0.242886,82343.0,82338.0,0.0798]
[1743398245595,0.242886,82343.0,82338.0,0.0818]
[1743398245799,0.242892,82342.0,82338.0,0.0818]
[1743398246011,0.242892,82342.0,82338.0,0.0808]
[1743398246215,0.242886,82343.0,82338.0,0.0808]
[1743398246455,0.242886,82343.0,82338.0,0.0798]
[1743398246977,0.01902196,82342.0,82338.0,0.0798]
[1743398247195,0.3,82344.0,82338.0,0.0808]
[1743398247397,0.3,82344.0,82338.0,0.336845]
[1743398247551,0.242892,82342.0,82338.0,0.0818]
[1743398247903,0.242889,82343.0,82338.0,0.0818]
[1743398248123,0.3,82342.0,82338.0,0.0818]
[1743398248703,0.3,82342.0,82338.0,0.0808]
[1743398249020,0.242862,82352.0,82339.0,0.255042]
[1743398249267,0.3,82349.0,82342.0,0.012144]
[1743398249491,0.3,82347.0,82343.0,0.14008]
[1743398249662,0.3,82345.0,82343.0,0.14008]
[1743398249820,0.542883,82344.0,82343.0,0.14008]
[1743398250204,0.56190505,82344.0,82343.0,0.14008]
[1743398250411,0.31902205,82344.0,82343.0,0.14008]
[1743398250665,0.31902205,82344.0,82343.0,0.14108]
[1743398251035,0.56190505,82344.0,82343.0,0.14108]
[1743398251889,0.56190505,82344.0,82343.0,0.14008]
[1743398252285,0.56190505,82344.0,82343.0,0.14208]
[1743398252647,0.56190505,82344.0,82343.0,0.14408]
[1743398253087,0.56190505,82344.0,82343.0,0.004]
[1743398253335,0.56190505,82344.0,82343.0,0.14408]
[1743398254677,0.57404905,82344.0,82343.0,0.14408]
[1743398255076,0.57404905,82344.0,82343.0,0.004]
[1743398256692,0.57404905,82344.0,82343.0,0.002]
[1743398256917,0.57404905,82344.0,82334.0,0.14008]
[1743398256918,0.24291,82335.0,82334.0,0.14008]
[1743398257302,0.24291,82335.0,82333.0,0.0806]
[1743398257502,0.242904,82337.0,82334.0,0.14008]
[1743398257906,0.24291,82335.0,82334.0,0.14008]
[1743398258626,0.24291,82335.0,82334.0,0.14308]
[1743398259124,0.24291,82335.0,82334.0,0.006]
[1743398259268,0.24291,82335.0,82334.0,0.14608]
[1743398259917,0.24291,82335.0,82334.0,0.14008]
[1743398260121,0.24291,82335.0,82334.0,0.003]
[1743398260339,0.26193391,82335.0,82334.0,0.006]
[1743398261264,0.57407891,82335.0,82334.0,0.006]
[1743398261455,0.57407891,82335.0,82334.0,0.14608]
[1743398261746,0.57407891,82335.0,82334.0,0.006]
[1743398261910,0.57407891,82335.0,82334.0,0.14608]
[1743398262124,0.57407891,82335.0,82334.0,0.006]
[1743398264969,0.57407891,82335.0,82334.0,0.003]
[1743398265173,0.57507891,82335.0,82334.0,0.003]
[1743398265718,0.242924,82330.0,82329.0,0.14054985]
[1743398265963,0.55507,82330.0,82329.0,0.14054985]
[1743398266570,0.55507,82330.0,82329.0,0.00046985]
[1743398267129,0.55507,82330.0,82329.0,0.00146985]
[1743398268051,0.55507,82330.0,82329.0,0.00246985]
[1743398268052,0.3,82330.0,82329.0,0.00246985]
[1743398268305,0.3,82330.0,82329.0,0.07846985]
[1743398268707,0.3,82330.0,82329.0,0.12486985]
[1743398271667,0.31902486,82330.0,82329.0,0.12486985]
[1743398271840,0.01902486,82330.0,82329.0,0.12486985]
[1743398272041,0.01902486,82330.0,82329.0,0.13701585]
[1743398274029,0.01902486,82330.0,82329.0,0.12486985]
[1743398274904,0.26194886,82330.0,82329.0,0.26494985]
[1743398275056,0.01902486,82330.0,82329.0,0.26494985]
[1743398275255,0.26194886,82330.0,82329.0,0.26494985]
[1743398275722,0.37158505,82330.0,82329.0,0.26494985]
[1743398275934,0.38373105,82330.0,82329.0,0.00246985]
[1743398276159,0.39512103,82330.0,82329.0,0.00246985]
[1743398276358,0.58548484,82330.0,82329.0,0.00246985]
[1743398277252,0.63248864,82330.0,82329.0,0.00246985]
[1743398277404,0.65526962,82330.0,82329.0,0.00146985]
[1743398277608,0.66981047,82330.0,82329.0,0.00246985]
[1743398277814,0.79617547,82330.0,82312.0,0.07078503]
[1743398278062,0.255122,82313.0,82312.0,0.07125528]
[1743398278501,0.29156491,82313.0,82312.0,0.04687025]
[1743398278740,0.32118106,82313.0,82312.0,0.04687025]
[1743398279170,0.63513214,82313.0,82312.0,0.00047025]
[1743398279743,0.65791312,82313.0,82312.0,0.00047025]
[1743398280341,0.75876664,82313.0,82312.0,2.5e-07]
[1743398280576,0.87558085,82313.0,82312.0,2.5e-07]
[1743398280771,0.87558085,82313.0,82286.0,0.14204]
[1743398280772,0.012152,82289.0,82286.0,0.14204]
[1743398280946,0.012152,82289.0,82288.0,0.00080729]
[1743398281469,0.04176815,82289.0,82288.0,0.00080729]
[1743398281882,0.12002532,82289.0,82288.0,0.00080729]
[1743398282080,0.42002532,82289.0,82288.0,0.00480729]
[1743398282643,0.42002532,82289.0,82288.0,0.00080729]
[1743398283053,0.42002532,82289.0,82288.0,0.00480729]
[1743398283469,0.43524978,82289.0,82288.0,0.00480729]
[1743398283688,0.55553461,82289.0,82288.0,0.00880729]
[1743398283840,0.6245892,82289.0,82288.0,0.00880729]
[1743398284047,0.6245892,82289.0,82288.0,0.00980729]
[1743398284415,0.6169777,82289.0,82288.0,0.00980729]
[1743398284651,0.6169777,82289.0,82288.0,0.00580729]
[1743398284878,0.65109305,82289.0,82288.0,0.00680729]
[1743398285081,0.6656339,82289.0,82288.0,0.00180729]
[1743398285287,0.51123372,82289.0,82288.0,0.00180729]
[1743398285636,0.51223372,82289.0,82288.0,0.00080729]
[1743398286052,0.51523372,82289.0,82288.0,0.00080729]
[1743398286201,0.53046126,82289.0,82288.0,0.00080729]
[1743398286581,0.52646126,82289.0,82288.0,0.00080729]
[1743398286988,0.52946126,82289.0,82288.0,0.00080729]
[1743398287207,0.64974609,82289.0,82288.0,0.00080729]
[1743398287416,0.50362076,82289.0,82288.0,0.00080729]
[1743398287817,0.49307991,82289.0,82288.0,0.00080729]
[1743398288018,0.39784004,82289.0,82288.0,0.00080729]
[1743398288394,0.40999204,82289.0,82288.0,0.00080729]
[1743398289117,0.40499204,82289.0,82288.0,0.00080729]
[1743398289644,0.36754913,82289.0,82288.0,0.00080729]
[1743398290097,0.37054913,82289.0,82288.0,0.00080729]
[1743398290671,0.34776815,82289.0,82288.0,0.00080729]
[1743398290888,0.34176815,82289.0,82288.0,0.00080729]
[1743398291089,0.3608046,82289.0,82288.0,0.00080729]
[1743398291289,0.3658046,82289.0,82288.0,0.00080729]
[1743398292035,0.47894196,82289.0,82288.0,0.00080729]
[1743398293464,0.54799655,82289.0,82288.0,0.00080729]
[1743398293625,0.5625374,82289.0,82288.0,0.00080729]
[1743398294266,1.05078252,82289.0,82288.0,2.9e-07]
[1743398294401,1.07339504,82289.0,82288.0,2.9e-07]
[1743398294609,1.03834275,82289.0,82288.0,2.9e-07]
[1743398294924,1.00824992,82289.0,82288.0,2.9e-07]
[1743398295126,0.555241,82275.0,82274.0,0.0003366]
[1743398295328,0.62532953,82275.0,82274.0,0.00080797]
[1743398295750,0.78703766,82275.0,82274.0,0.00080797]
[1743398296095,0.84112911,82275.0,82274.0,0.00080797]
[1743398296261,0.78418092,82275.0,82274.0,0.00080797]
[1743398296465,0.78418092,82275.0,82274.0,9.7e-07]
[1743398296668,0.36174714,82274.0,82273.0,5.7e-07]
[1743398296863,0.39685725,82274.0,82273.0,5.7e-07]
[1743398297282,0.51714208,82274.0,82273.0,5.7e-07]
[1743398297456,0.97029437,82274.0,82273.0,5.7e-07]
[1743398297650,0.56981485,82264.0,82263.0,1.7e-07]
[1743398297853,0.6757683,82264.0,82263.0,1.7e-07]
[1743398298251,0.6757683,82264.0,82251.0,0.004]
[1743398298252,0.55529,82259.0,82251.0,0.004]
[1743398298454,0.67615374,82259.0,82251.0,0.004]
[1743398299277,1.59391474,82259.0,82258.0,4e-07]
[1743398299640,0.67833152,82259.0,82258.0,4e-07]
[1743398300084,0.555312,82252.0,82251.0,0.004]
[1743398300214,0.64164075,82252.0,82251.0,0.004]
[1743398300654,0.555327,82247.0,82246.0,0.0003362]
[1743398300864,0.62748446,82247.0,82246.0,0.0003362]
[1743398301263,0.555327,82247.0,82246.0,0.0003362]
[1743398301463,0.3,82247.0,82246.0,0.0003362]
[1743398301721,0.38616755,82247.0,82246.0,0.0824362]
[1743398301920,0.38663638,82247.0,82246.0,0.0824362]
[1743398302174,0.37447838,82247.0,82246.0,0.0824362]
[1743398302443,0.37447838,82247.0,82246.0,0.3377662]
[1743398302628,0.41170845,82247.0,82246.0,0.0824362]
[1743398303301,0.39648061,82247.0,82246.0,0.3854662]
[1743398303825,0.09648061,82247.0,82246.0,0.50575103]
[1743398304028,0.0526975,82247.0,82246.0,0.50575103]
[1743398304197,0.0566975,82247.0,82246.0,0.50575103]
[1743398304616,0.0546975,82247.0,82246.0,0.50575103]
[1743398304970,0.0526975,82247.0,82246.0,0.50575103]
[1743398305300,0.26353556,82258.0,82257.0,0.255297]
[1743398305523,0.26353556,82258.0,82257.0,0.500837]
[1743398306058,0.28257624,82258.0,82257.0,0.500837]
[1743398306505,0.01904068,82258.0,82257.0,0.500837]
[1743398306868,0.01904068,82258.0,82257.0,0.24554]
[1743398307231,0.243128,82261.0,82257.0,0.24554]
[1743398307676,0.255284,82261.0,82257.0,0.24554]
[1743398309261,0.25529,82259.0,82257.0,0.0821]
[1743398309409,0.255292,82259.0,82257.0,0.24566]
[1743398309795,0.012156,82260.0,82257.0,0.24566]
[1743398310243,0.3,82263.0,82257.0,0.24566]
[1743398310756,0.3,82261.0,82257.0,0.24566]
[1743398310919,0.01484348,82261.0,82257.0,0.24566]
[1743398311466,0.243131,82260.0,82257.0,0.24566]
[1743398311642,0.255281,82262.0,82257.0,0.24566]
[1743398311643,0.243125,82262.0,82257.0,0.24566]
[1743398311850,0.012155,82266.0,82258.0,0.012156]
[1743398312018,0.01904137,82260.0,82258.0,0.012156]
[1743398312226,0.01904137,82260.0,82257.0,0.24566]
[1743398314546,0.01904137,82260.0,82259.0,0.012156]
[1743398317312,0.243111,82267.0,82261.0,0.012156]
[1743398317489,0.13530714,82270.0,82267.0,0.012155]
[1743398317689,0.13530714,82270.0,82261.0,0.012156]
[1743398317690,0.243104,82270.0,82261.0,0.012156]
[1743398317857,0.012155,82269.0,82261.0,0.012156]
[1743398318308,0.02351982,82269.0,82261.0,0.012156]
[1743398318524,0.001,82267.0,82261.0,0.012156]
[1743398318825,0.243113,82266.0,82258.0,0.291335]
[1743398318952,0.243126,82262.0,82258.0,0.0482]
[1743398319512,0.243113,82266.0,82260.0,0.255287]
[1743398319748,0.243113,82266.0,82260.0,0.012156]
[1743398319909,0.01136482,82261.0,82259.0,0.012156]
[1743398320232,0.01136482,82261.0,82260.0,0.255287]
[1743398320544,0.01136482,82261.0,82260.0,0.497647]
[1743398320674,0.03040533,82261.0,82260.0,0.497647]
[1743398321695,0.03040533,82261.0,82260.0,0.66613183]
[1743398322676,0.01904051,82261.0,82260.0,0.66613183]
[1743398325187,0.03041637,82261.0,82260.0,0.66613183]
[1743398325925,0.03041637,82261.0,82260.0,0.50397183]
[1743398326083,0.03041637,82261.0,82260.0,0.66497183]
[1743398327467,0.01137586,82261.0,82260.0,0.66497183]
[1743398328432,0.01137586,82261.0,82260.0,0.50397183]
[1743398328633,0.01137586,82261.0,82260.0,0.28904]
[1743398329632,0.01137586,82261.0,82260.0,0.544327]
[1743398329980,0.01137586,82261.0,82260.0,0.301196]
[1743398330143,0.0304167,82261.0,82260.0,0.301196]
[1743398330331,0.0304167,82261.0,82260.0,0.544327]
[1743398332717,0.01904084,82261.0,82260.0,0.544327]
[1743398336180,0.01904084,82261.0,82260.0,0.383687]
[1743398336385,0.01904084,82261.0,82260.0,0.543487]
[1743398336596,0.01904084,82261.0,82260.0,0.1284]
[1743398336800,0.012155,82265.0,82260.0,0.2882]
[1743398336981,0.243107,82268.0,82261.0,0.243128]
[1743398337162,0.243107,82268.0,82262.0,0.012156]
[1743398337527,0.243114,82266.0,82261.0,0.243128]
[1743398337735,0.243113,82267.0,82261.0,0.243128]
[1743398337933,0.243096,82272.0,82264.0,0.243117]
[1743398339071,0.012154,82277.0,82268.0,0.255262]
[1743398339197,0.3,82277.0,82272.0,0.012154]
[1743398339740,0.3,82277.0,82276.0,0.012154]
[1743398339970,0.01903893,82276.0,82274.0,0.24309]
[1743398340205,0.01903893,82276.0,82275.0,0.15932]
[1743398340373,0.01903893,82276.0,82275.0,0.15936687]
[1743398340529,0.01903893,82276.0,82275.0,0.21862087]
[1743398341117,0.01903893,82276.0,82275.0,0.43796611]
[1743398341963,9.3e-07,82276.0,82275.0,0.43796611]
[1743398342173,0.00891485,82309.0,82303.0,0.255154]
[1743398342381,0.012148,82316.0,82303.0,0.413874]
[1743398342794,0.1,82317.0,82303.0,0.413874]
[1743398342998,0.112148,82317.0,82303.0,0.413874]
[1743398343223,0.242973,82314.0,82303.0,0.413874]
[1743398343429,0.255121,82314.0,82306.0,0.255142]
[1743398343846,0.012149,82311.0,82304.0,0.01215]
[1743398344058,0.012149,82311.0,82305.0,0.254147]
[1743398344240,0.255126,82312.0,82306.0,0.012149]
[1743398344998,0.36422003,82315.0,82308.0,0.012149]
[1743398345243,0.012148,82313.0,82308.0,0.010149]
[1743398345446,0.002,82311.0,82310.0,0.012149]
[1743398345648,0.002,82311.0,82310.0,0.087149]
[1743398345856,0.002,82311.0,82310.0,0.20743383]
[1743398346075,0.002,82311.0,82310.0,0.25453383]
[1743398346717,0.10910103,82315.0,82314.0,0.012148]
[1743398346930,0.10910103,82315.0,82314.0,0.37240483]
[1743398347063,0.10910103,82315.0,82314.0,0.37040483]
[1743398348122,0.10910103,82315.0,82310.0,0.1221]
[1743398348297,0.11010103,82315.0,82312.0,0.255125]
[1743398348499,0.242954,82320.0,82315.0,0.255117]
[1743398348698,0.242943,82324.0,82316.0,0.012148]
[1743398348899,0.01366693,82325.0,82320.0,0.012147]
[1743398349106,0.242942,82324.0,82321.0,0.1592]
[1743398350562,0.243942,82324.0,82321.0,0.1592]
[1743398351322,0.256089,82324.0,82321.0,0.1592]
[1743398351687,0.257089,82324.0,82321.0,0.1592]
[1743398351857,0.27611721,82324.0,82321.0,0.1592]
[1743398352219,0.27611721,82324.0,82322.0,0.15856]
[1743398353342,0.27511721,82324.0,82322.0,0.15856]
[1743398353546,0.27611721,82324.0,82322.0,0.15856]
[1743398353955,0.02102821,82324.0,82322.0,0.15856]
[1743398354137,0.242945,82323.0,82322.0,0.15856]
[1743398354333,0.255092,82323.0,82322.0,0.15856]
[1743398355503,0.242945,82323.0,82322.0,0.15796]
[1743398355706,0.02102821,82324.0,82322.0,0.15796]
[1743398355910,0.26297221,82324.0,82322.0,0.15796]
[1743398356250,0.001,82323.0,82322.0,0.15796]
[1743398356741,0.013147,82323.0,82322.0,0.15796]
[1743398356870,0.001,82323.0,82322.0,0.15796]
[1743398357514,0.013147,82323.0,82322.0,0.15796]
[1743398357914,0.001,82323.0,82322.0,0.15796]
[1743398358300,0.013147,82323.0,82322.0,0.15796]
[1743398358695,0.014147,82323.0,82322.0,0.15796]
[1743398359105,0.24296,82318.0,82308.0,0.255138]
[1743398359319,0.24296,82318.0,82312.0,0.15788]
[1743398359528,0.37825814,82321.0,82314.0,0.012148]
[1743398359723,0.37825814,82321.0,82317.0,0.02449084]
[1743398360104,0.242957,82319.0,82317.0,0.02449084]
[1743398360821,0.242958,82319.0,82317.0,0.02449084]
[1743398361032,0.37825814,82321.0,82317.0,0.02449084]
[1743398361205,0.242957,82319.0,82317.0,0.02449084]
[1743398361828,0.26198566,82319.0,82317.0,0.02449084]
[1743398363418,0.242977,82312.0,82311.0,0.63112]
[1743398363569,0.255125,82312.0,82311.0,0.78844]
[1743398363774,0.242977,82312.0,82311.0,0.78844]
[1743398364569,0.26198566,82319.0,82312.0,0.012148]
[1743398364771,0.242962,82318.0,82313.0,0.012148]
[1743398365127,0.242962,82318.0,82312.0,0.012148]
[1743398365479,0.01902866,82319.0,82318.0,0.255108]
[1743398365694,0.01902866,82319.0,82318.0,0.337808]
[1743398365905,0.01902866,82319.0,82318.0,0.45809283]
[1743398366116,0.01902866,82319.0,82318.0,0.50759283]
[1743398367160,0.01380465,82328.0,82326.0,0.242936]
[1743398367465,0.004,82329.0,82327.0,0.15708]
[1743398367967,0.004,82329.0,82327.0,0.40001]
[1743398368180,0.004,82329.0,82327.0,0.169226]
[1743398369182,0.004,82329.0,82327.0,0.15908]
[1743398369594,0.004,82329.0,82327.0,0.171226]
[1743398369931,0.004,82329.0,82327.0,0.15908]
[1743398370139,0.02302599,82329.0,82327.0,0.15908]
[1743398370357,0.24293,82328.0,82327.0,0.15908]
[1743398370711,0.02302599,82329.0,82327.0,0.15908]
[1743398370915,0.01088599,82329.0,82327.0,0.15908]
[1743398371119,0.01088599,82329.0,82327.0,0.16008]
[1743398371323,0.24293,82328.0,82327.0,0.15708]
[1743398371640,0.242945,82323.0,82318.0,0.1322]
[1743398371871,0.255111,82317.0,82316.0,0.02432628]
[1743398372071,0.255117,82315.0,82314.0,0.15628]
[1743398372599,0.242977,82312.0,82311.0,0.63112]
[1743398372801,0.255125,82312.0,82311.0,0.78744]
[1743398373893,0.255125,82312.0,82311.0,0.78732]
[1743398374523,0.242977,82312.0,82311.0,0.78932]
[1743398374966,0.26199907,82315.0,82311.0,0.78932]
[1743398375160,0.242975,82313.0,82311.0,0.79132]
[1743398375800,0.242975,82313.0,82311.0,0.78932]
[1743398376003,0.242975,82313.0,82311.0,0.78732]
[1743398376236,0.012148,82312.0,82311.0,0.78832]
[1743398376492,0.242975,82313.0,82311.0,0.78832]
[1743398377316,0.242975,82313.0,82311.0,0.78932]
[1743398377516,0.242975,82313.0,82311.0,0.1562]
[1743398377937,0.242975,82313.0,82311.0,0.1602]
[1743398379906,0.242953,82321.0,82315.0,0.012148]
[1743398380263,0.312147,82324.0,82316.0,0.1241]
[1743398380924,0.012147,82323.0,82316.0,0.1241]
[1743398381126,0.242951,82321.0,82316.0,0.1241]
[1743398381331,0.012147,82319.0,82316.0,0.1241]
[1743398381470,0.242963,82317.0,82316.0,0.1241]
[1743398381670,0.255111,82317.0,82316.0,0.1241]
[1743398381936,0.012148,82316.0,82315.0,0.02435882]
[1743398383186,0.255135,82309.0,82308.0,0.045]
[1743398383366,0.242986,82309.0,82308.0,0.20028]
[1743398383692,0.242974,82314.0,82308.0,0.23693393]
[1743398384115,0.242969,82315.0,82309.0,0.255135]
[1743398384318,0.01902945,82313.0,82309.0,0.255135]
[1743398384510,0.01902945,82313.0,82310.0,0.15516]
[1743398384929,0.01902945,82313.0,82312.0,0.012148]
[1743398385130,0.01902945,82313.0,82311.0,0.0819]
[1743398385529,0.26200545,82313.0,82311.0,0.0819]
[1743398386275,0.26200545,82313.0,82311.0,0.0839]
[1743398386502,0.01902945,82313.0,82311.0,0.0839]
[1743398387142,0.242963,82317.0,82311.0,0.0839]
[1743398387301,0.242969,82315.0,82311.0,0.0839]
[1743398387920,0.242974,82314.0,82312.0,0.002]
[1743398388126,0.242974,82314.0,82311.0,0.0819]
[1743398388446,0.24297,82315.0,82311.0,0.0829]
[1743398388588,0.24297,82315.0,82311.0,0.0839]
[1743398388784,0.24297,82315.0,82311.0,0.0829]
[1743398389031,0.24297,82315.0,82312.0,0.001]
[1743398389375,0.242974,82314.0,82311.0,0.0839]
[1743398389730,0.242977,82312.0,82311.0,0.0819]
[1743398390237,0.26200673,82312.0,82311.0,0.0839]
[1743398390431,0.01902973,82312.0,82311.0,0.0839]
[1743398391419,0.01902973,82312.0,82311.0,0.0819]
[1743398391618,0.01902973,82312.0,82311.0,0.0839]
[1743398391904,0.01902973,82312.0,82311.0,0.0859]
[1743398392066,0.01902973,82312.0,82311.0,0.32888]
[1743398392220,0.01902973,82312.0,82311.0,0.46131383]
[1743398393467,0.01902973,82312.0,82311.0,0.50871383]
[1743398394410,0.01902973,82312.0,82311.0,0.66279383]
[1743398395694,0.01902973,82312.0,82311.0,0.67641136]
[1743398395852,0.242927,82330.0,82325.0,0.0769]
[1743398396056,0.24293,82329.0,82326.0,0.1538]
[1743398396279,0.242933,82328.0,82326.0,0.1538]
[1743398396614,0.242936,82326.0,82325.0,0.0769]
[1743398396776,0.255082,82326.0,82325.0,0.23058]
[1743398397003,0.242936,82326.0,82325.0,0.23058]
[1743398397387,0.242923,82331.0,82325.0,0.23058]
[1743398397611,0.55638781,82333.0,82328.0,0.24293]
[1743398397815,0.31347281,82333.0,82328.0,0.24293]
[1743398397986,0.002,82328.0,82327.0,0.012146]
[1743398398225,0.55638881,82333.0,82326.0,0.290336]
[1743398398407,0.003,82330.0,82326.0,0.290336]
[1743398398615,0.003,82330.0,82326.0,0.0474]
[1743398398818,0.242929,82329.0,82326.0,0.0474]
[1743398399013,0.255079,82327.0,82326.0,0.0474]
[1743398399212,0.255079,82327.0,82326.0,0.20072]
[1743398399616,0.242933,82327.0,82326.0,0.20072]
[1743398400299,0.26196002,82327.0,82326.0,0.20072]
[1743398401111,0.26196002,82327.0,82326.0,0.20172]
[1743398401509,0.26196002,82327.0,82326.0,0.20272]
[1743398401715,0.01902702,82327.0,82326.0,0.20272]
[1743398401924,0.01902702,82327.0,82326.0,0.20472]
[1743398402802,0.27410602,82327.0,82326.0,0.20472]
[1743398403916,0.01902702,82327.0,82326.0,0.447656]
[1743398404090,0.01902702,82327.0,82326.0,0.459802]
[1743398404437,0.01902702,82327.0,82326.0,0.542702]
[1743398406753,0.01902702,82327.0,82326.0,0.66298683]
[1743398407176,0.00046941,82330.0,82329.0,0.337973]
[1743398407377,0.00046941,82330.0,82329.0,0.45825783]
[1743398408604,0.00046941,82330.0,82329.0,0.46025783]
[1743398409479,0.00046941,82330.0,82329.0,0.45825783]
[1743398409658,0.00046941,82330.0,82329.0,0.46125783]
[1743398409868,0.00046941,82330.0,82329.0,0.50855783]
[1743398412279,0.00046941,82330.0,82329.0,0.66067783]
[1743398414982,0.00046941,82330.0,82329.0,0.66031783]
[1743398415179,0.00046941,82330.0,82329.0,0.28496]
[1743398416154,0.00046941,82330.0,82329.0,0.297106]
[1743398416879,0.00046941,82330.0,82329.0,0.540033]
[1743398417457,0.00046941,82330.0,82329.0,0.527887]
[1743398417607,0.00046941,82330.0,82329.0,0.28496]
[1743398418740,0.00046941,82330.0,82329.0,0.540033]
[1743398419433,0.00046941,82330.0,82329.0,0.297106]
[1743398419865,0.00046941,82330.0,82329.0,0.28496]
[1743398420067,0.00046941,82330.0,82329.0,0.28464]
[1743398421579,0.01949386,82330.0,82329.0,0.28464]
[1743398421784,0.01949386,82330.0,82329.0,0.527567]
[1743398421928,0.01949386,82330.0,82329.0,0.539713]
[1743398427223,0.00046941,82330.0,82329.0,0.539713]
[1743398430695,0.00046941,82330.0,82329.0,0.65999783]
[1743398431602,4.1e-07,82330.0,82329.0,0.65999783]
[1743398431804,0.0001683,82356.0,82355.0,0.381593]
[1743398432009,0.0001683,82356.0,82355.0,0.531953]
[1743398432437,0.01918887,82356.0,82355.0,0.531953]
[1743398432647,0.01918887,82356.0,82355.0,0.67650371]
[1743398433062,0.01918887,82356.0,82355.0,0.67655058]
[1743398433708,0.01918887,82356.0,82355.0,0.67855058]
[1743398434739,0.01918887,82356.0,82355.0,0.30327275]
[1743398435203,0.01918887,82356.0,82355.0,0.15491275]
[1743398435369,0.01918887,82356.0,82355.0,0.30531275]
[1743398437321,0.0001683,82356.0,82355.0,0.30531275]
[1743398440398,0.01918781,82356.0,82355.0,0.30531275]
[1743398440673,0.01918781,82356.0,82355.0,0.30507275]
[1743398441091,0.03132981,82356.0,82355.0,0.15491275]
[1743398441328,0.03132981,82356.0,82355.0,0.02831275]
[1743398442489,0.03132981,82356.0,82355.0,0.02431275]
[1743398442691,0.03132981,82356.0,82355.0,0.02531275]
[1743398444488,0.01918781,82356.0,82355.0,0.02531275]
[1743398444661,0.01918781,82356.0,82355.0,0.15351275]
[1743398445246,0.26203581,82356.0,82355.0,0.15351275]
[1743398446863,0.01918781,82356.0,82355.0,0.40850575]
[1743398447064,0.0001683,82356.0,82355.0,0.52879058]
[1743398450066,0.01918774,82356.0,82355.0,0.52879058]
[1743398451704,0.01918774,82356.0,82355.0,1.15955058]
[1743398457179,0.0001683,82356.0,82355.0,1.15955058]
[1743398459589,0.0001683,82356.0,82355.0,1.16255058]
[1743398459786,0.0001683,82356.0,82355.0,1.31483058]
[1743398460600,0.0001683,82356.0,82355.0,1.31475058]
[1743398461601,0.0001683,82356.0,82355.0,1.16655058]
[1743398461829,0.0001683,82356.0,82355.0,1.31459058]
[1743398465935,0.0001683,82356.0,82355.0,1.61459058]
[1743398466359,0.242757,82387.0,82380.0,0.242776]
[1743398466563,0.242757,82387.0,82381.0,0.14768]
[1743398466766,0.242757,82387.0,82381.0,0.390451]
[1743398467144,0.01320513,82387.0,82386.0,0.254896]
[1743398467346,0.012136,82394.0,82386.0,0.254296]
[1743398467544,0.3,82395.0,82387.0,0.012137]
[1743398467750,0.3,82395.0,82387.0,0.008137]
[1743398467946,0.242741,82393.0,82387.0,0.008137]
[1743398468149,0.242738,82394.0,82387.0,0.008137]
[1743398468351,0.242739,82393.0,82386.0,0.03604256]
[1743398468549,0.004,82387.0,82386.0,0.03604256]
[1743398468902,0.01353768,82395.0,82392.0,0.012137]
[1743398469112,0.3,82401.0,82395.0,0.009136]
[1743398469266,0.3,82409.0,82398.0,0.25186]
[1743398469471,0.01311107,82401.0,82397.0,0.242727]
[1743398469667,0.01311107,82401.0,82396.0,0.159656]
[1743398469668,0.242718,82400.0,82396.0,0.14752]
[1743398469892,0.242724,82398.0,82396.0,0.14652]
[1743398472038,0.03148231,82399.0,82396.0,0.14652]
[1743398472244,0.03348231,82399.0,82396.0,0.14652]
[1743398472446,0.03148231,82399.0,82396.0,0.14652]
[1743398472859,0.244724,82398.0,82396.0,0.14652]
[1743398473097,0.242724,82398.0,82396.0,0.14652]
[1743398475513,0.242724,82398.0,82396.0,0.14592]
[1743398475718,0.03348231,82399.0,82396.0,0.14592]
[1743398475894,0.242724,82398.0,82396.0,0.14592]
[1743398476463,0.242724,82398.0,82392.0,0.242741]
[1743398476666,0.242724,82398.0,82397.0,0.14748]
[1743398477274,0.0144713,82399.0,82397.0,0.14748]
[1743398477588,0.242724,82398.0,82391.0,0.012137]
[1743398477823,0.243724,82398.0,82392.0,0.160057]
[1743398478037,0.001,82398.0,82394.0,0.242735]
[1743398478239,0.001,82398.0,82395.0,0.148]
[1743398478436,0.001,82398.0,82395.0,0.390732]
[1743398478676,0.001,82398.0,82395.0,0.402868]
[1743398479129,0.0124713,82399.0,82395.0,0.402868]
[1743398479466,0.002,82398.0,82395.0,0.402868]
[1743398480052,0.004,82398.0,82395.0,0.148]
[1743398480287,0.02301033,82398.0,82395.0,0.148]
[1743398481088,0.26573533,82398.0,82395.0,0.148]
[1743398481746,0.242744,82391.0,82390.0,0.0499]
[1743398481966,0.242751,82389.0,82387.0,0.0833]
[1743398482166,0.242751,82389.0,82388.0,0.14792]
[1743398482543,0.24275,82389.0,82388.0,0.14792]
[1743398482751,0.2617619,82389.0,82388.0,0.14792]
[1743398483498,0.0190119,82389.0,82388.0,0.14792]
[1743398483711,0.2617619,82389.0,82388.0,0.14792]